[Event "Late-Titled-Tuesday-Blitz-February-06-2024"]
[Site "Chess.com"]
[Date "2024.02.06"]
[Round "4"]
[White "The_Machine04"]
[Black "valeriocarnicelli"]
[Result "1/2-1/2"]
[WhiteElo "2720"]
[BlackElo "2535"]
[TimeControl "180+1"]
[EndTime "14:40:27 PST"]
[Termination "Game drawn - insufficient material"]

1. d4 {[%clk 0:03:00.9]} 1... Nf6 {[%clk 0:02:59.7]} 2. Nf3 {[%clk 0:03:01]}
2... c5 {[%clk 0:02:59.9]} 3. e3 {[%clk 0:03:01.2]} 3... e6 {[%clk 0:02:59.3]}
4. Nbd2 {[%clk 0:03:00.9]} 4... d5 {[%clk 0:02:59.5]} 5. c3 {[%clk 0:03:01.2]}
5... Nc6 {[%clk 0:03:00.1]} 6. Bd3 {[%clk 0:03:01.5]} 6... Bd6 {[%clk 0:03:00]}
7. O-O {[%clk 0:03:01.7]} 7... O-O {[%clk 0:03:00.3]} 8. dxc5 {[%clk 0:03:02.2]}
8... Bxc5 {[%clk 0:03:00]} 9. b4 {[%clk 0:03:03.1]} 9... Bd6 {[%clk 0:02:59.7]}
10. Bb2 {[%clk 0:03:03.1]} 10... a5 {[%clk 0:02:50.9]} 11. a3 {[%clk 0:03:02.3]}
11... h6 {[%clk 0:02:45.1]} 12. e4 {[%clk 0:03:02.2]} 12... Re8 {[%clk
0:02:23.1]} 13. Qe2 {[%clk 0:02:57.3]} 13... Qc7 {[%clk 0:02:17]} 14. Rad1
{[%clk 0:02:44.7]} 14... Ne5 {[%clk 0:02:06.9]} 15. Nxe5 {[%clk 0:02:43.8]}
15... Bxe5 {[%clk 0:02:07.8]} 16. Nf3 {[%clk 0:02:42.6]} 16... dxe4 {[%clk
0:01:48.4]} 17. Bxe4 {[%clk 0:02:41.8]} 17... Nxe4 {[%clk 0:01:45.9]} 18. Qxe4
{[%clk 0:02:42.7]} 18... Bf6 {[%clk 0:01:46.2]} 19. b5 {[%clk 0:02:00.8]} 19...
a4 {[%clk 0:01:32.4]} 20. Qb4 {[%clk 0:01:55.5]} 20... b6 {[%clk 0:01:25.3]} 21.
Qd6 {[%clk 0:01:51.2]} 21... Ra7 {[%clk 0:00:57.2]} 22. Qxc7 {[%clk 0:01:38]}
22... Rxc7 {[%clk 0:00:58.1]} 23. Rd6 {[%clk 0:01:36.9]} 23... Rb7 {[%clk
0:00:44.1]} 24. Rfd1 {[%clk 0:01:33.5]} 24... Be7 {[%clk 0:00:41]} 25. R6d4
{[%clk 0:01:30]} 25... Ra7 {[%clk 0:00:33.5]} 26. c4 {[%clk 0:01:26.5]} 26...
Bc5 {[%clk 0:00:12.7]} 27. Rd8 {[%clk 0:01:21.4]} 27... Rf8 {[%clk 0:00:04.1]}
28. Rxf8+ {[%clk 0:01:17.7]} 28... Bxf8 {[%clk 0:00:05]} 29. Rd8 {[%clk
0:01:15.7]} 29... Ra8 {[%clk 0:00:05.6]} 30. Ne5 {[%clk 0:01:12.5]} 30... Bb7
{[%clk 0:00:05.7]} 31. Rxa8 {[%clk 0:01:08.4]} 31... Bxa8 {[%clk 0:00:05.9]} 32.
Nd7 {[%clk 0:01:09.1]} 32... Be4 {[%clk 0:00:03.3]} 33. Nxb6 {[%clk 0:01:07.2]}
33... Bd3 {[%clk 0:00:03.9]} 34. h3 {[%clk 0:00:48.8]} 34... f6 {[%clk
0:00:04.3]} 35. Nxa4 {[%clk 0:00:47]} 35... Bxc4 {[%clk 0:00:04.3]} 36. b6
{[%clk 0:00:47.4]} 36... Bd5 {[%clk 0:00:03.6]} 37. Nc3 {[%clk 0:00:45.4]} 37...
Bc6 {[%clk 0:00:02.5]} 38. a4 {[%clk 0:00:37.1]} 38... Bb4 {[%clk 0:00:03.1]}
39. Kf1 {[%clk 0:00:31]} 39... Ba5 {[%clk 0:00:03.3]} 40. Nb5 {[%clk 0:00:24.9]}
40... Bxb6 {[%clk 0:00:03.7]} 41. f3 {[%clk 0:00:21.9]} 41... e5 {[%clk
0:00:04.1]} 42. Ke2 {[%clk 0:00:21.8]} 42... Kf7 {[%clk 0:00:04.6]} 43. Kd3
{[%clk 0:00:20]} 43... Ke6 {[%clk 0:00:05.1]} 44. Kc4 {[%clk 0:00:19.6]} 44...
h5 {[%clk 0:00:04.7]} 45. Bc3 {[%clk 0:00:17.6]} 45... h4 {[%clk 0:00:03.5]} 46.
a5 {[%clk 0:00:17.8]} 46... Bd8 {[%clk 0:00:02.3]} 47. a6 {[%clk 0:00:17.3]}
47... Bb6 {[%clk 0:00:02.9]} 48. Bb4 {[%clk 0:00:16.5]} 48... g5 {[%clk
0:00:02.6]} 49. Bc5 {[%clk 0:00:16.8]} 49... Bxc5 {[%clk 0:00:02.5]} 50. Kxc5
{[%clk 0:00:17.7]} 50... Kd7 {[%clk 0:00:03]} 51. Nc3 {[%clk 0:00:15.9]} 51...
f5 {[%clk 0:00:03.2]} 52. Nd5 {[%clk 0:00:13.9]} 52... e4 {[%clk 0:00:01.9]} 53.
fxe4 {[%clk 0:00:13.3]} 53... fxe4 {[%clk 0:00:02.8]} 54. Nb4 {[%clk 0:00:13.6]}
54... Ba8 {[%clk 0:00:02.6]} 55. Kd4 {[%clk 0:00:13.5]} 55... Kc7 {[%clk
0:00:02.4]} 56. Na2 {[%clk 0:00:11.8]} 56... Kb6 {[%clk 0:00:02.7]} 57. Nc3
{[%clk 0:00:12.4]} 57... e3 {[%clk 0:00:01.5]} 58. Kxe3 {[%clk 0:00:10.4]} 58...
Bxg2 {[%clk 0:00:02.4]} 59. Ne4 {[%clk 0:00:09.5]} 59... g4 {[%clk 0:00:01.7]}
60. hxg4 {[%clk 0:00:09.3]} 60... h3 {[%clk 0:00:02.6]} 61. Ng3 {[%clk
0:00:07.4]} 61... h2 {[%clk 0:00:03]} 62. g5 {[%clk 0:00:07.5]} 62... h1=Q
{[%clk 0:00:03.1]} 63. Nxh1 {[%clk 0:00:08]} 63... Bxh1 {[%clk 0:00:04]} 64. Kd4
{[%clk 0:00:08.7]} 64... Bf3 {[%clk 0:00:03.3]} 65. g6 {[%clk 0:00:08.7]} 65...
Bh5 {[%clk 0:00:03.7]} 66. g7 {[%clk 0:00:09.3]} 66... Bf7 {[%clk 0:00:04.2]}
67. a7 {[%clk 0:00:09.1]} 67... Kxa7 {[%clk 0:00:04.5]} 68. Ke5 {[%clk
0:00:09.7]} 68... Bg8 {[%clk 0:00:04.9]} 69. Kd6 {[%clk 0:00:10.2]} 69... Kb6
{[%clk 0:00:05.2]} 70. Ke7 {[%clk 0:00:10.7]} 70... Kc7 {[%clk 0:00:05.5]} 71.
Kf8 {[%clk 0:00:11.6]} 71... Be6 {[%clk 0:00:05.8]} 72. Ke7 {[%clk 0:00:12.5]}
72... Bd5 {[%clk 0:00:05.9]} 73. Kf6 {[%clk 0:00:12.8]} 73... Bc4 {[%clk
0:00:06.1]} 74. Ke7 {[%clk 0:00:13.1]} 74... Kc8 {[%clk 0:00:06]} 75. Ke8 {[%clk
0:00:13.3]} 75... Kc7 {[%clk 0:00:06.1]} 76. Kf8 {[%clk 0:00:13.7]} 76... Kd7
{[%clk 0:00:06.1]} 77. g8=Q {[%clk 0:00:13.9]} 77... Bxg8 {[%clk 0:00:06.5]}
1/2-1/2

[Event "Late-Titled-Tuesday-Blitz-February-06-2024"]
[Site "Chess.com"]
[Date "2024.02.06"]
[Round "4"]
[White "Polish_fighter3000"]
[Black "lucliasco"]
[Result "1-0"]
[WhiteElo "3048"]
[BlackElo "2875"]
[TimeControl "180+1"]
[EndTime "14:40:38 PST"]
[Termination "Polish_fighter3000 won by resignation"]

1. e4 {[%clk 0:03:00.9]} 1... e5 {[%clk 0:02:55.7]} 2. Nc3 {[%clk 0:02:59.3]}
2... Nc6 {[%clk 0:02:55.3]} 3. f4 {[%clk 0:02:58.2]} 3... exf4 {[%clk 0:02:55]}
4. d4 {[%clk 0:02:58.3]} 4... Bb4 {[%clk 0:02:51.3]} 5. Nf3 {[%clk 0:02:55.9]}
5... d5 {[%clk 0:02:49.9]} 6. e5 {[%clk 0:02:43.2]} 6... Bg4 {[%clk 0:02:44.7]}
7. Bb5 {[%clk 0:02:40.1]} 7... Ne7 {[%clk 0:02:27.9]} 8. Bxf4 {[%clk 0:02:31.8]}
8... O-O {[%clk 0:02:07.5]} 9. O-O {[%clk 0:02:30.7]} 9... Ng6 {[%clk
0:02:05.3]} 10. Bg3 {[%clk 0:02:24.6]} 10... Nce7 {[%clk 0:01:58.3]} 11. h3
{[%clk 0:02:19.4]} 11... Be6 {[%clk 0:01:57.3]} 12. Ng5 {[%clk 0:02:12.1]} 12...
Bf5 {[%clk 0:01:40.7]} 13. Ne2 {[%clk 0:01:38.8]} 13... c6 {[%clk 0:01:36.8]}
14. Bd3 {[%clk 0:01:35.3]} 14... Bxd3 {[%clk 0:01:35.4]} 15. Qxd3 {[%clk
0:01:36.2]} 15... h6 {[%clk 0:01:36.2]} 16. Nf3 {[%clk 0:01:32.5]} 16... Qd7
{[%clk 0:01:35.9]} 17. c3 {[%clk 0:01:23.7]} 17... Ba5 {[%clk 0:01:35.7]} 18.
Nh2 {[%clk 0:01:18.5]} 18... Bb6 {[%clk 0:01:35.9]} 19. Rf3 {[%clk 0:01:15.1]}
19... c5 {[%clk 0:01:24.6]} 20. Raf1 {[%clk 0:01:15.6]} 20... cxd4 {[%clk
0:01:24.6]} 21. cxd4 {[%clk 0:01:16.5]} 21... Nc6 {[%clk 0:01:25]} 22. Ng4
{[%clk 0:01:11.4]} 22... Rae8 {[%clk 0:01:21.8]} 23. Kh1 {[%clk 0:01:08.5]}
23... Re6 {[%clk 0:01:22.1]} 24. Be1 {[%clk 0:00:51]} 24... a6 {[%clk
0:01:20.5]} 25. Bc3 {[%clk 0:00:50.6]} 25... Nce7 {[%clk 0:01:19.4]} 26. Ng3
{[%clk 0:00:50.2]} 26... Qb5 {[%clk 0:01:15]} 27. Qd1 {[%clk 0:00:43.8]} 27...
Nh4 {[%clk 0:01:12.3]} 28. Rf4 {[%clk 0:00:38.5]} 28... Nhg6 {[%clk 0:01:12.6]}
29. R4f2 {[%clk 0:00:33.6]} 29... Nh4 {[%clk 0:01:13]} 30. Nh5 {[%clk
0:00:30.8]} 30... Rg6 {[%clk 0:01:06.5]} 31. g3 {[%clk 0:00:28.1]} 31... Nhf5
{[%clk 0:01:03.6]} 32. Rxf5 {[%clk 0:00:27.8]} 32... Nxf5 {[%clk 0:01:04.5]} 33.
Rxf5 {[%clk 0:00:28.3]} 33... Qd7 {[%clk 0:01:04.9]} 34. Qf3 {[%clk 0:00:25.3]}
34... Bd8 {[%clk 0:01:03.1]} 35. Kh2 {[%clk 0:00:16.5]} 35... b5 {[%clk
0:01:02.2]} 36. Bb4 {[%clk 0:00:16]} 36... Re8 {[%clk 0:01:00.4]} 37. Bc5 {[%clk
0:00:16.2]} 37... a5 {[%clk 0:00:51.8]} 38. Ne3 {[%clk 0:00:10.1]} 38... Bg5
{[%clk 0:00:50.9]} 39. Nxd5 {[%clk 0:00:09.3]} 39... Rd8 {[%clk 0:00:50.6]} 40.
Nc3 {[%clk 0:00:06.9]} 40... Bd2 {[%clk 0:00:44.9]} 41. Ne4 {[%clk 0:00:06.5]}
41... Bb4 {[%clk 0:00:45.8]} 42. Nd6 {[%clk 0:00:04.9]} 42... Qe6 {[%clk
0:00:46.1]} 43. Rxf7 {[%clk 0:00:04.5]} 43... Bxc5 {[%clk 0:00:43.7]} 44. dxc5
{[%clk 0:00:05.4]} 44... Qxe5 {[%clk 0:00:42.5]} 45. Rf5 {[%clk 0:00:04.4]}
45... Qxb2+ {[%clk 0:00:40.8]} 46. Qg2 {[%clk 0:00:05]} 46... Qc3 {[%clk
0:00:37.4]} 47. Nf4 {[%clk 0:00:04.9]} 47... Rgxd6 {[%clk 0:00:35.5]} 48. cxd6
{[%clk 0:00:04.5]} 48... Rxd6 {[%clk 0:00:36.4]} 49. Rd5 {[%clk 0:00:03.9]}
49... Rxd5 {[%clk 0:00:27.4]} 50. Qxd5+ {[%clk 0:00:04.8]} 50... Kh7 {[%clk
0:00:25.6]} 51. Qf5+ {[%clk 0:00:05]} 51... Kg8 {[%clk 0:00:23.7]} 52. Qe6+
{[%clk 0:00:05.4]} 52... Kh7 {[%clk 0:00:23.8]} 53. Qe4+ {[%clk 0:00:05.6]}
53... Kh8 {[%clk 0:00:20.8]} 54. Qe8+ {[%clk 0:00:05.2]} 54... Kh7 {[%clk
0:00:21]} 55. Qxb5 {[%clk 0:00:06]} 55... Qd2+ {[%clk 0:00:20.7]} 56. Qe2 {[%clk
0:00:06.6]} 56... Qd4 {[%clk 0:00:19.5]} 57. h4 {[%clk 0:00:06.1]} 57... Qa1
{[%clk 0:00:15.8]} 58. h5 {[%clk 0:00:06]} 58... a4 {[%clk 0:00:15]} 59. Qc2+
{[%clk 0:00:05.9]} 59... Kg8 {[%clk 0:00:15.1]} 60. Qxa4 {[%clk 0:00:06.1]}
60... Qb2+ {[%clk 0:00:15.1]} 61. Kh3 {[%clk 0:00:06.6]} 61... Qb8 {[%clk
0:00:15.9]} 62. Qc4+ {[%clk 0:00:06.2]} 62... Kh8 {[%clk 0:00:16]} 63. a4 {[%clk
0:00:05.2]} 63... Kh7 {[%clk 0:00:15.6]} 64. a5 {[%clk 0:00:05]} 64... Qd8
{[%clk 0:00:14.8]} 65. Qe4+ {[%clk 0:00:04.9]} 65... Kh8 {[%clk 0:00:14.9]} 66.
a6 {[%clk 0:00:05.2]} 66... Qc8+ {[%clk 0:00:15.1]} 67. Qe6 {[%clk 0:00:05.2]}
67... Qa8 {[%clk 0:00:13.8]} 68. Kg4 {[%clk 0:00:03.8]} 68... Qd8 {[%clk
0:00:10.8]} 69. a7 {[%clk 0:00:03.2]} 69... Qa8 {[%clk 0:00:10.8]} 70. Qd7
{[%clk 0:00:03.3]} 70... Kh7 {[%clk 0:00:10.5]} 71. Qf5+ {[%clk 0:00:03.1]}
71... Kh8 {[%clk 0:00:10.7]} 72. Ng6+ {[%clk 0:00:03]} 72... Kg8 {[%clk
0:00:11.4]} 73. Qf8+ {[%clk 0:00:03]} 73... Kh7 {[%clk 0:00:11]} 74. Qh8+ {[%clk
0:00:03.3]} 74... Qxh8 {[%clk 0:00:10.7]} 75. Nxh8 {[%clk 0:00:04.2]} 75... Kg8
{[%clk 0:00:10.8]} 76. a8=Q+ {[%clk 0:00:04.6]} 76... Kh7 {[%clk 0:00:11.7]} 77.
Nf7 {[%clk 0:00:04.8]} 1-0

[Event "Late-Titled-Tuesday-Blitz-February-06-2024"]
[Site "Chess.com"]
[Date "2024.02.06"]
[Round "4"]
[White "Jarrahi2452"]
[Black "GHANDEEVAM2003"]
[Result "0-1"]
[WhiteElo "2799"]
[BlackElo "3038"]
[TimeControl "180+1"]
[EndTime "14:40:43 PST"]
[Termination "GHANDEEVAM2003 won on time"]

1. d4 {[%clk 0:03:00.9]} 1... d6 {[%clk 0:03:00.1]} 2. Nf3 {[%clk 0:02:59.4]}
2... g6 {[%clk 0:03:01]} 3. Bf4 {[%clk 0:02:58.8]} 3... Bg7 {[%clk 0:03:01.4]}
4. e3 {[%clk 0:02:58.9]} 4... Nc6 {[%clk 0:03:02.2]} 5. h3 {[%clk 0:02:56.5]}
5... Nf6 {[%clk 0:02:58.7]} 6. c3 {[%clk 0:02:55.6]} 6... O-O {[%clk 0:02:58.2]}
7. Be2 {[%clk 0:02:55.8]} 7... Qe8 {[%clk 0:02:57.1]} 8. O-O {[%clk 0:02:54.8]}
8... e5 {[%clk 0:02:57.8]} 9. Bh2 {[%clk 0:02:54]} 9... Qe7 {[%clk 0:02:56.7]}
10. a4 {[%clk 0:02:52.6]} 10... a5 {[%clk 0:02:56.2]} 11. Nbd2 {[%clk
0:02:52.4]} 11... Re8 {[%clk 0:02:55.3]} 12. Rc1 {[%clk 0:02:42.8]} 12... h6
{[%clk 0:02:53.9]} 13. Bb5 {[%clk 0:02:40.1]} 13... e4 {[%clk 0:02:53]} 14. Ne1
{[%clk 0:02:39.7]} 14... Bd7 {[%clk 0:02:53.4]} 15. Nc2 {[%clk 0:02:37.5]} 15...
Kh7 {[%clk 0:02:54]} 16. Na3 {[%clk 0:02:37]} 16... h5 {[%clk 0:02:48.8]} 17. c4
{[%clk 0:02:27.1]} 17... Nb4 {[%clk 0:02:47.7]} 18. c5 {[%clk 0:02:21.3]} 18...
Nd3 {[%clk 0:02:27]} 19. Bxd3 {[%clk 0:02:15.7]} 19... exd3 {[%clk 0:02:26.6]}
20. cxd6 {[%clk 0:02:12.3]} 20... cxd6 {[%clk 0:02:27.5]} 21. Ndc4 {[%clk
0:02:12.1]} 21... d5 {[%clk 0:02:21.9]} 22. Nd6 {[%clk 0:02:05.7]} 22... Red8
{[%clk 0:02:11.2]} 23. Rc7 {[%clk 0:01:56.1]} 23... Ne4 {[%clk 0:02:09.1]} 24.
Ndb5 {[%clk 0:01:48.6]} 24... d2 {[%clk 0:01:26.1]} 25. f3 {[%clk 0:01:47.3]}
25... Ng5 {[%clk 0:01:22.7]} 26. Qxd2 {[%clk 0:01:47.2]} 26... Ne6 {[%clk
0:01:23.4]} 27. Rcc1 {[%clk 0:01:39.7]} 27... Bc6 {[%clk 0:01:22.3]} 28. Rfe1
{[%clk 0:01:35.2]} 28... Re8 {[%clk 0:01:19.6]} 29. Bd6 {[%clk 0:01:28.7]} 29...
Qg5 {[%clk 0:01:17.6]} 30. Kh2 {[%clk 0:01:26.3]} 30... h4 {[%clk 0:01:16.1]}
31. Qf2 {[%clk 0:01:23.1]} 31... Rad8 {[%clk 0:01:12.6]} 32. f4 {[%clk
0:01:08.5]} 32... Qh5 {[%clk 0:01:12]} 33. Qf3 {[%clk 0:01:03.8]} 33... Qh6
{[%clk 0:01:07.1]} 34. Bc5 {[%clk 0:00:53.3]} 34... Nxc5 {[%clk 0:01:03]} 35.
Rxc5 {[%clk 0:00:53.1]} 35... Bf8 {[%clk 0:01:02.4]} 36. Rcc1 {[%clk 0:00:51.1]}
36... Re6 {[%clk 0:00:58.5]} 37. Rf1 {[%clk 0:00:46.9]} 37... f5 {[%clk
0:00:56.6]} 38. Rce1 {[%clk 0:00:41.4]} 38... Qg7 {[%clk 0:00:55.6]} 39. Qe2
{[%clk 0:00:39.8]} 39... Bb4 {[%clk 0:00:54]} 40. Rd1 {[%clk 0:00:38.4]} 40...
Rde8 {[%clk 0:00:52.9]} 41. Nc2 {[%clk 0:00:37.5]} 41... Bf8 {[%clk 0:00:50.1]}
42. b3 {[%clk 0:00:37.8]} 42... Kg8 {[%clk 0:00:49.7]} 43. Nc3 {[%clk 0:00:36]}
43... g5 {[%clk 0:00:48.3]} 44. fxg5 {[%clk 0:00:36.1]} 44... Qxg5 {[%clk
0:00:49.2]} 45. Kh1 {[%clk 0:00:35]} 45... f4 {[%clk 0:00:45.7]} 46. Rde1 {[%clk
0:00:34.8]} 46... fxe3 {[%clk 0:00:45.4]} 47. Qf3 {[%clk 0:00:33.5]} 47... Bd6
{[%clk 0:00:42.1]} 48. Qf7+ {[%clk 0:00:32.2]} 48... Kh8 {[%clk 0:00:42.4]} 49.
Rf5 {[%clk 0:00:32.3]} 49... Qg7 {[%clk 0:00:39.3]} 50. Rh5+ {[%clk 0:00:31.2]}
50... Rh6 {[%clk 0:00:40.1]} 51. Qxg7+ {[%clk 0:00:29.6]} 51... Kxg7 {[%clk
0:00:40.2]} 52. Rxh6 {[%clk 0:00:30.5]} 52... Kxh6 {[%clk 0:00:41.1]} 53. Rxe3
{[%clk 0:00:30.7]} 53... Rf8 {[%clk 0:00:38.8]} 54. Re6+ {[%clk 0:00:28.9]}
54... Kg5 {[%clk 0:00:36]} 55. Rxd6 {[%clk 0:00:29.1]} 55... Kf4 {[%clk
0:00:36.7]} 56. Nxd5+ {[%clk 0:00:27.1]} 56... Kg3 {[%clk 0:00:35.5]} 57. Nde3
{[%clk 0:00:23.5]} 57... Bxg2+ {[%clk 0:00:34.1]} 58. Kg1 {[%clk 0:00:21.9]}
58... Bxh3 {[%clk 0:00:35]} 59. Rg6+ {[%clk 0:00:20.5]} 59... Kf3 {[%clk
0:00:34.8]} 60. d5 {[%clk 0:00:19]} 60... Bc8 {[%clk 0:00:32.9]} 61. d6 {[%clk
0:00:18.9]} 61... h3 {[%clk 0:00:32.5]} 62. Kh2 {[%clk 0:00:18.1]} 62... Ke4
{[%clk 0:00:30.9]} 63. Rg7 {[%clk 0:00:17.4]} 63... Rf2+ {[%clk 0:00:30.2]} 64.
Kh1 {[%clk 0:00:17.6]} 64... Rd2 {[%clk 0:00:30]} 65. Rc7 {[%clk 0:00:16.4]}
65... Be6 {[%clk 0:00:28.2]} 66. d7 {[%clk 0:00:14.8]} 66... Bxd7 {[%clk
0:00:27.7]} 67. Rxb7 {[%clk 0:00:13.7]} 67... Kf4 {[%clk 0:00:24.4]} 68. Rb6
{[%clk 0:00:10.6]} 68... Bc8 {[%clk 0:00:21.4]} 69. Na3 {[%clk 0:00:09.2]} 69...
Re2 {[%clk 0:00:15.1]} 70. Nac4 {[%clk 0:00:09.3]} 70... Ra2 {[%clk 0:00:13.8]}
71. Rf6+ {[%clk 0:00:08.1]} 71... Kg3 {[%clk 0:00:13.2]} 72. Ne5 {[%clk
0:00:06.5]} 72... Bb7+ {[%clk 0:00:12.1]} 0-1

[Event "Late-Titled-Tuesday-Blitz-February-06-2024"]
[Site "Chess.com"]
[Date "2024.02.06"]
[Round "4"]
[White "dennisodessa"]
[Black "Dedic8"]
[Result "1-0"]
[WhiteElo "2600"]
[BlackElo "2869"]
[TimeControl "180+1"]
[EndTime "14:40:50 PST"]
[Termination "dennisodessa won by resignation"]

1. d4 {[%clk 0:03:00]} 1... Nf6 {[%clk 0:03:00]} 2. c4 {[%clk 0:02:55.8]} 2...
e6 {[%clk 0:03:00.2]} 3. Nc3 {[%clk 0:02:56.1]} 3... d5 {[%clk 0:03:00.8]} 4.
cxd5 {[%clk 0:02:55.7]} 4... exd5 {[%clk 0:03:01.7]} 5. Bg5 {[%clk 0:02:56.2]}
5... Be7 {[%clk 0:03:02.1]} 6. e3 {[%clk 0:02:56]} 6... h6 {[%clk 0:03:02.9]} 7.
Bh4 {[%clk 0:02:56.1]} 7... c6 {[%clk 0:03:03.4]} 8. Bd3 {[%clk 0:02:56.3]} 8...
O-O {[%clk 0:03:04.1]} 9. Qc2 {[%clk 0:02:56]} 9... Ne8 {[%clk 0:03:04.3]} 10.
Bxe7 {[%clk 0:02:50.6]} 10... Qxe7 {[%clk 0:03:05.2]} 11. Nf3 {[%clk 0:02:51.2]}
11... Nd7 {[%clk 0:03:05]} 12. O-O {[%clk 0:02:49.6]} 12... Nd6 {[%clk
0:02:54.9]} 13. Na4 {[%clk 0:02:42.9]} 13... Ne4 {[%clk 0:02:49.9]} 14. Nd2
{[%clk 0:02:41.7]} 14... Ndf6 {[%clk 0:02:47.4]} 15. Rac1 {[%clk 0:02:41.8]}
15... Bf5 {[%clk 0:02:46.8]} 16. Nc5 {[%clk 0:02:38.9]} 16... Rfe8 {[%clk
0:02:40]} 17. Rfe1 {[%clk 0:02:33.6]} 17... Bg6 {[%clk 0:02:19.1]} 18. f3 {[%clk
0:02:29.3]} 18... Nxc5 {[%clk 0:02:16]} 19. Bxg6 {[%clk 0:02:25.8]} 19... fxg6
{[%clk 0:02:13.4]} 20. Qxc5 {[%clk 0:02:25.5]} 20... Qf7 {[%clk 0:02:13.7]} 21.
b3 {[%clk 0:02:05.9]} 21... g5 {[%clk 0:02:13.7]} 22. e4 {[%clk 0:02:05.6]}
22... dxe4 {[%clk 0:02:12.4]} 23. fxe4 {[%clk 0:02:06.5]} 23... Qg6 {[%clk
0:01:52.3]} 24. d5 {[%clk 0:01:40.6]} 24... cxd5 {[%clk 0:01:51.5]} 25. e5
{[%clk 0:01:41.3]} 25... Ng4 {[%clk 0:01:42.2]} 26. Qxd5+ {[%clk 0:01:40.1]}
26... Kh8 {[%clk 0:01:42.6]} 27. Qxb7 {[%clk 0:01:37.8]} 27... Qd3 {[%clk
0:01:08.3]} 28. Nf3 {[%clk 0:00:50.7]} 28... a5 {[%clk 0:00:59.6]} 29. Qe4
{[%clk 0:00:48.2]} 29... Qd7 {[%clk 0:00:52.2]} 30. e6 {[%clk 0:00:39.5]} 30...
Qa7+ {[%clk 0:00:40]} 31. Qd4 {[%clk 0:00:39.7]} 31... Qxd4+ {[%clk 0:00:23.8]}
32. Nxd4 {[%clk 0:00:40.6]} 32... a4 {[%clk 0:00:23.7]} 33. e7 {[%clk
0:00:33.2]} 33... axb3 {[%clk 0:00:22.7]} 34. axb3 {[%clk 0:00:34.1]} 34... Ra7
{[%clk 0:00:22.2]} 35. Nc6 {[%clk 0:00:34]} 35... Rb7 {[%clk 0:00:20.8]} 36. b4
{[%clk 0:00:34.6]} 36... Kg8 {[%clk 0:00:19.3]} 37. Rcd1 {[%clk 0:00:30.8]}
37... Nf6 {[%clk 0:00:19.5]} 38. Rd8 {[%clk 0:00:22.4]} 38... Kf7 {[%clk
0:00:18.4]} 39. Red1 {[%clk 0:00:22.4]} 39... Kg6 {[%clk 0:00:09.3]} 40. Rf1
{[%clk 0:00:18.1]} 40... Kf7 {[%clk 0:00:08.2]} 41. Rfd1 {[%clk 0:00:15.1]}
41... Kg6 {[%clk 0:00:08.6]} 42. h3 {[%clk 0:00:14.7]} 42... Kf7 {[%clk
0:00:07.5]} 43. Rxe8 {[%clk 0:00:13.1]} 43... Kxe8 {[%clk 0:00:07.4]} 44. Rd8+
{[%clk 0:00:13.5]} 44... Kf7 {[%clk 0:00:08]} 45. Rf8+ {[%clk 0:00:14.4]} 45...
Kg6 {[%clk 0:00:07]} 46. e8=Q+ {[%clk 0:00:15.3]} 46... Nxe8 {[%clk 0:00:07.1]}
47. Rxe8 {[%clk 0:00:16.2]} 47... Kf5 {[%clk 0:00:05.8]} 48. Kh2 {[%clk
0:00:08.5]} 48... Rb6 {[%clk 0:00:05.9]} 49. Rc8 {[%clk 0:00:08.2]} 49... g4
{[%clk 0:00:05.6]} 50. Nd4+ {[%clk 0:00:05.4]} 50... Ke4 {[%clk 0:00:05.6]} 51.
Nc6 {[%clk 0:00:03.4]} 51... gxh3 {[%clk 0:00:04.5]} 52. Kxh3 {[%clk 0:00:04.3]}
52... Kd5 {[%clk 0:00:05.2]} 53. Ne7+ {[%clk 0:00:03.7]} 53... Ke5 {[%clk
0:00:04.6]} 54. Nc6+ {[%clk 0:00:02.8]} 54... Kd6 {[%clk 0:00:05]} 55. Na7
{[%clk 0:00:02.3]} 55... Rxb4 {[%clk 0:00:05.2]} 56. Rc6+ {[%clk 0:00:02.2]}
56... Ke5 {[%clk 0:00:04.9]} 57. Rg6 {[%clk 0:00:02.5]} 57... Rb7 {[%clk
0:00:05.3]} 58. Nc6+ {[%clk 0:00:01.6]} 58... Kf5 {[%clk 0:00:06]} 59. Rg3
{[%clk 0:00:01.5]} 59... g5 {[%clk 0:00:06.2]} 60. Nd4+ {[%clk 0:00:01.9]} 60...
Kg6 {[%clk 0:00:06.6]} 61. Nf3 {[%clk 0:00:02.2]} 61... Re7 {[%clk 0:00:06.8]}
62. Kh2 {[%clk 0:00:03.1]} 62... Kf5 {[%clk 0:00:06.8]} 63. Ng1 {[%clk
0:00:03.3]} 63... Kg6 {[%clk 0:00:07.5]} 64. Rf3 {[%clk 0:00:03.7]} 64... Re6
{[%clk 0:00:07.2]} 65. Rf2 {[%clk 0:00:03.8]} 65... Ra6 {[%clk 0:00:07.7]} 66.
Ne2 {[%clk 0:00:03.6]} 66... h5 {[%clk 0:00:08.1]} 67. Nd4 {[%clk 0:00:03.3]}
67... Rd6 {[%clk 0:00:07.5]} 68. Nf3 {[%clk 0:00:02.9]} 68... Re6 {[%clk
0:00:05.9]} 69. Rd2 {[%clk 0:00:02.8]} 69... h4 {[%clk 0:00:06.1]} 70. Rd5
{[%clk 0:00:02.7]} 70... Kf6 {[%clk 0:00:03.5]} 71. Rxg5 {[%clk 0:00:02.5]}
71... Re3 {[%clk 0:00:04.4]} 72. Rg4 {[%clk 0:00:02.5]} 72... h3 {[%clk
0:00:05.3]} 73. Kxh3 {[%clk 0:00:02.7]} 73... Kf5 {[%clk 0:00:06.2]} 74. Kg3
{[%clk 0:00:03.6]} 74... Rd3 {[%clk 0:00:06.7]} 75. Rf4+ {[%clk 0:00:03.9]}
75... Ke6 {[%clk 0:00:07]} 76. Rg4 {[%clk 0:00:04.8]} 76... Ra3 {[%clk
0:00:07.6]} 77. Rd4 {[%clk 0:00:05.7]} 77... Kf5 {[%clk 0:00:08.2]} 78. Rd5+
{[%clk 0:00:05.9]} 78... Ke6 {[%clk 0:00:08.9]} 79. Rd4 {[%clk 0:00:06.8]} 79...
Ra4 {[%clk 0:00:09.8]} 80. Rxa4 {[%clk 0:00:06.7]} 1-0